bitfinex/quotes_ETHUSD_20240823
["timestamp","ask_amount","ask_price","bid_price","bid_amount"]
[1724411556846,3.75509,2663.1,2662.7,2.75817858]
[1724411557152,3.75482,2663.3,2662.7,2.75817858]
[1724411557346,3.75502,2663.1,2662.7,2.75817858]
[1724411557574,3.75502,2663.1,2662.8,0.27581786]
[1724411557951,3.75482,2663.3,2662.9,0.05456144]
[1724411558268,3.75493,2663.2,2662.9,0.05456144]
[1724411560186,3.75504,2663.1,2662.9,0.05456144]
[1724411560548,3.75504,2663.1,2662.7,2.703371]
[1724411561175,3.75504,2663.1,2662.8,0.05465164]
[1724411561671,3.75482,2663.3,2662.8,0.05465164]
[1724411561846,3.75482,2663.3,2662.8,0.3508968]
[1724411562046,3.75483,2663.3,2662.9,0.05456144]
[1724411562275,3.75461,2663.4,2662.9,0.12965598]
[1724411562477,3.75466,2663.4,2662.9,0.12965598]
[1724411562680,3.75466,2663.4,2662.9,1.1916309]
[1724411562884,7.50879,2663.6,2663.0,3.83022116]
[1724411563057,7.50879,2663.6,2663.1,2.448]
[1724411563058,3.75439,2663.6,2663.1,2.448]
[1724411563258,3.75439,2663.6,2663.2,0.0750858]
[1724411563484,6.08235,2664.1,2663.2,0.70833049]
[1724411563663,3.75421,2663.7,2663.3,0.05420072]
[1724411564179,3.75421,2663.7,2663.4,0.05411055]
[1724411564581,3.75421,2663.7,2663.2,0.63324469]
[1724411564756,7.50832,2663.8,2663.5,0.0540204]
[1724411564959,3.75416,2663.8,2663.2,4.38804469]
[1724411565183,3.75412,2663.8,2663.6,0.05356412]
[1724411565362,3.75418,2663.7,2663.3,1.05909847]
[1724411565697,3.75412,2663.8,2663.3,1.05909847]
[1724411566192,3.75412,2663.8,2663.3,4.81382847]
[1724411567651,7.50761,2664.0,2663.4,6.0958]
[1724411567890,7.50761,2664.0,2663.5,1.09096285]
[1724411568079,7.50759,2664.0,2663.5,1.09096285]
[1724411568465,3.75376,2664.0,2663.5,1.09096285]
[1724411568668,3.75391,2663.9,2663.5,1.09096285]
[1724411569324,3.0,2664.2,2663.4,2.3413]
[1724411569467,3.75425,2663.7,2663.4,2.3413]
[1724411570058,3.75425,2663.7,2663.2,6.0961]
[1724411570526,7.50852,2663.7,2663.2,6.0961]
[1724411570816,3.75425,2663.7,2663.2,6.0961]
[1724411570963,3.75425,2663.7,2663.3,0.60961]
[1724411571843,7.50851,2663.7,2663.3,0.60961]
[1724411572097,3.75431,2663.6,2663.3,0.60961]
[1724411572257,3.75446,2663.5,2663.3,0.60961]
[1724411572463,3.75446,2663.5,2663.0,3.75507]
[1724411572690,3.75446,2663.5,2663.0,7.51014]
[1724411573258,3.75446,2663.5,2662.9,2.3847]
[1724411573496,3.75446,2663.5,2663.0,3.75514]
[1724411573680,3.75446,2663.5,2663.1,0.613984]
[1724411574054,3.75461,2663.4,2663.1,0.613984]
[1724411574297,3.75446,2663.5,2662.9,2.3847]
[1724411574799,3.75441,2663.6,2662.9,6.13991]
[1724411574976,3.75477,2663.3,2662.9,2.3847]
[1724411575494,3.75459,2663.4,2662.9,6.13998]
[1724411575658,3.75449,2663.5,2662.9,6.13998]
[1724411575859,3.75449,2663.5,2663.0,1.01711023]
[1724411576196,3.75438,2663.6,2663.1,3.75501]
[1724411576905,3.75438,2663.6,2663.2,0.05329584]
[1724411577395,3.75427,2663.7,2663.2,0.05329584]
[1724411577896,3.75427,2663.7,2663.0,4.77218023]
[1724411578112,2.4144,2663.8,2663.3,0.05320567]
[1724411578113,3.7546,2663.4,2663.3,0.05320567]
[1724411578260,3.75456,2663.5,2662.9,3.75528]
[1724411578465,7.50914,2663.5,2663.3,0.05320567]
[1724411578664,3.7546,2663.4,2663.0,0.40310823]
[1724411579111,2.4144,2663.8,2663.0,2.68830823]
[1724411579112,3.75439,2663.6,2663.0,2.68830823]
[1724411579314,3.75439,2663.6,2663.1,4.39930282]
[1724411579521,3.75439,2663.6,2663.1,8.15425282]
[1724411579846,3.75399,2663.9,2663.3,3.75465]
[1724411579847,3.754,2663.9,2663.3,3.75465]
[1724411580145,3.75404,2663.8,2663.3,3.75465]
[1724411580600,3.75437,2663.6,2663.1,4.39927282]
[1724411580927,7.50877,2663.6,2663.2,0.70875811]
[1724411581109,3.75437,2663.6,2663.2,0.70875811]
[1724411582195,7.50878,2663.6,2663.2,0.70875811]
[1724411582525,3.75446,2663.5,2663.2,0.70875811]
[1724411582728,3.75446,2663.5,2663.0,6.44345823]
[1724411582886,3.75446,2663.5,2663.0,2.68830823]
[1724411583092,3.75475,2663.3,2663.0,0.40310823]
[1724411583721,7.50959,2663.3,2663.0,0.40310823]
[1724411583927,7.50959,2663.3,2662.7,6.18769]
[1724411583928,3.75489,2663.2,2662.7,6.18769]
[1724411585210,3.75489,2663.2,2662.7,2.4322]
[1724411585599,3.75513,2663.1,2662.6,3.75564]
[1724411585947,3.75524,2663.0,2662.5,3.75586]
[1724411586632,7.50993,2663.2,2662.5,3.75586]
[1724411586838,3.75492,2663.2,2662.6,0.618806]
[1724411587195,3.7551,2663.1,2662.6,0.618806]
[1724411587711,3.75516,2663.0,2662.6,0.618806]
[1724411588512,3.75503,2663.1,2662.6,4.374516]
[1724411588898,3.75476,2663.3,2662.8,7.51077]
[1724411589100,3.75476,2663.3,2662.9,0.979297]
[1724411589339,3.75447,2663.5,2663.0,3.75514]
[1724411590297,3.75447,2663.5,2663.0,3.75508]
[1724411590503,3.75463,2663.4,2662.9,0.979297]
[1724411590838,3.75447,2663.5,2663.0,0.8489987]
[1724411591026,3.75463,2663.4,2663.0,0.8489987]
[1724411591803,3.75463,2663.4,2663.1,0.05349861]
[1724411592106,3.75447,2663.5,2663.1,0.05349861]
[1724411592925,3.75433,2663.6,2663.2,2.2588]
[1724411593101,3.75433,2663.6,2663.3,0.60672886]
[1724411593302,3.75433,2663.6,2663.3,0.66004712]
[1724411594153,3.75427,2663.7,2663.3,0.66004712]
[1724411594517,3.75425,2663.7,2663.3,0.66004712]
[1724411594853,3.75425,2663.7,2663.4,0.66736971]
[1724411595165,3.75425,2663.7,2663.5,0.05313794]
[1724411595714,7.50851,2663.7,2663.5,0.05313794]
[1724411595915,7.50851,2663.7,2663.2,2.2588]
[1724411596237,3.75425,2663.7,2663.3,0.05331826]
[1724411596456,7.50853,2663.7,2663.3,0.66003209]
[1724411596638,3.75436,2663.6,2663.3,0.66003209]
[1724411596951,3.75436,2663.6,2663.3,0.05331826]
[1724411597128,3.75425,2663.7,2663.3,0.05331826]
[1724411597345,3.75425,2663.7,2663.2,7.50961]
[1724411597549,3.75425,2663.7,2663.4,0.0532281]
[1724411597769,3.75425,2663.7,2663.3,2.42905111]
[1724411598055,3.75425,2663.7,2663.5,0.05320365]
[1724411598209,3.75425,2663.7,2663.4,0.67167892]
[1724411598210,7.50851,2663.7,2663.4,0.67167892]
[1724411598415,3.75432,2663.6,2663.4,0.67167892]
[1724411598751,3.75432,2663.6,2663.1,3.75501]
[1724411601118,3.75432,2663.6,2663.0,4.6041487]
[1724411601119,3.75461,2663.4,2663.0,4.6041487]
[1724411601357,3.75432,2663.6,2663.0,4.6041487]
[1724411601737,3.75449,2663.5,2663.0,4.6040487]
[1724411601955,3.75449,2663.5,2663.1,1.43651487]
[1724411603578,3.75449,2663.5,2663.1,5.19151487]
[1724411603923,3.75429,2663.7,2663.1,5.19151487]
[1724411604288,3.75429,2663.7,2663.2,3.75485]
[1724411605885,3.75411,2663.8,2663.3,3.75472]
[1724411606096,3.75411,2663.8,2663.4,3.130057]
[1724411606391,7.50825,2663.8,2663.4,3.130057]
[1724411606571,3.75411,2663.8,2663.4,3.130057]
[1724411606882,3.75411,2663.8,2663.5,0.05319896]
[1724411607460,0.39283076,2664.1,2663.5,0.05319896]
[1724411607461,3.75431,2663.6,2663.5,0.05319896]
[1724411607692,3.75466,2663.4,2662.8,6.02015]
[1724411607850,3.75474,2663.3,2662.8,6.02015]
[1724411608987,3.75466,2663.4,2662.8,6.02015]
[1724411609522,7.50936,2663.4,2662.8,6.02015]
[1724411610033,3.75466,2663.4,2662.8,9.77551]
[1724411610330,3.75466,2663.4,2663.0,1.718551]
[1724411610524,3.75466,2663.4,2662.7,12.37]
[1724411610525,3.75488,2663.2,2662.7,12.37]
[1724411610670,3.75506,2663.1,2662.7,12.37]
[1724411611174,3.75485,2663.3,2662.6,4.374416]
[1724411611371,3.75485,2663.3,2662.7,1.4168016]
[1724411611972,3.75467,2663.4,2662.7,1.4168016]
[1724411612181,3.75467,2663.4,2662.8,3.75535]
[1724411612411,7.50937,2663.4,2662.8,3.75535]
[1724411612627,3.75467,2663.4,2662.8,3.75535]
[1724411612913,3.75467,2663.4,2662.8,4.64813216]
[1724411613109,7.50938,2663.4,2662.8,4.64813216]
[1724411613298,3.75467,2663.4,2662.8,4.64813216]
[1724411613483,3.75482,2663.3,2662.8,0.89278216]
[1724411613684,2.3113,2663.6,2663.1,0.0223699]
[1724411613685,3.75488,2663.2,2663.1,0.0223699]
[1724411615214,6.05688,2663.2,2663.1,0.0223699]
[1724411615516,3.75488,2663.2,2663.1,0.0223699]
[1724411617211,3.75474,2663.3,2663.1,0.0223699]
[1724411620427,3.75488,2663.2,2663.1,0.0223699]
[1724411621917,3.75488,2663.2,2663.1,0.07449295]
[1724411621918,7.50976,2663.2,2663.1,0.07449295]
[1724411622087,7.885248,2663.2,2663.1,0.0223699]
[1724411622293,7.885248,2663.2,2663.1,0.07300555]
[1724411622493,7.885248,2663.2,2663.1,0.0223699]
[1724411625715,14.065128,2663.2,2663.1,0.0223699]
[1724411625922,14.615128,2663.2,2663.1,0.0223699]
[1724411629555,21.370008,2663.2,2663.1,0.0223699]
[1724411630719,28.93607484,2663.2,2663.1,0.0223699]
[1724411633843,28.93607484,2663.2,2663.1,9.9e-06]
[1724411636496,24.63119484,2663.2,2663.1,9.9e-06]
[1724411636683,17.065128,2663.2,2663.1,9.9e-06]
[1724411636883,14.26464,2663.2,2663.1,9.9e-06]
[1724411637256,10.50976,2663.2,2663.1,9.9e-06]
[1724411638959,14.26464,2663.2,2663.1,9.9e-06]
[1724411639620,14.81464,2663.2,2663.1,9.9e-06]
[1724411641018,11.05976,2663.2,2663.1,9.9e-06]
[1724411641991,8.05976,2663.2,2663.1,9.9e-06]
[1724411642192,8.05976,2663.2,2663.1,2.3093099]
[1724411642974,11.81464,2663.2,2663.1,9.9e-06]
[1724411643177,8.05976,2663.2,2663.1,9.9e-06]
[1724411644430,3.75516,2663.0,2662.8,2.2507]
[1724411644589,3.75504,2663.1,2662.8,2.47577]
[1724411644791,7.51014,2663.1,2662.9,0.05067038]
[1724411645032,3.75504,2663.1,2662.9,0.05067038]
[1724411645332,3.75488,2663.2,2662.9,0.30331442]
[1724411645497,3.75509,2663.1,2662.9,0.30331442]
[1724411648295,7.5102,2663.1,2662.9,0.30331442]
[1724411648495,3.75509,2663.1,2662.9,0.30331442]
[1724411650614,3.75489,2663.2,2662.9,0.30331442]
[1724411652105,3.75514,2663.1,2662.9,0.30331442]
[1724411652415,3.75513,2663.1,2662.9,0.05067038]
[1724411653387,3.75489,2663.2,2662.9,0.05067038]
[1724411653651,3.75502,2663.1,2662.9,0.05067038]
[1724411654771,7.50988,2663.2,2662.9,0.05067038]
[1724411655717,3.75489,2663.2,2662.9,0.05067038]
[1724411656067,3.75502,2663.1,2662.9,0.05067038]
[1724411658611,3.75478,2663.3,2662.9,2.40161862]
[1724411659046,3.75454,2663.5,2663.1,3.90949382]
[1724411659448,3.75454,2663.5,2663.2,0.04951715]
[1724411660352,3.75432,2663.6,2663.2,0.04951715]
[1724411660554,3.75432,2663.6,2663.2,0.82091825]
[1724411660755,3.75425,2663.7,2663.2,0.82091825]
[1724411660756,3.75425,2663.7,2663.3,2.3229]
[1724411660982,3.75425,2663.7,2663.3,2.39798622]
[1724411661182,3.75425,2663.7,2663.4,0.04933681]
[1724411662275,3.75396,2663.9,2663.4,0.04933681]
[1724411662587,3.75396,2663.9,2663.5,2.3167]
[1724411662775,3.75388,2664.0,2663.5,6.07109]
[1724411663085,3.75388,2664.0,2663.6,0.04879985]
[1724411663086,3.75403,2663.8,2663.6,0.04879985]
[1724411663672,3.75388,2664.0,2663.6,0.04879985]
[1724411663673,3.7539,2663.9,2663.6,0.04879985]
[1724411664590,6.75326,2664.4,2663.6,0.04879985]
[1724411664591,3.75354,2664.2,2663.6,0.04879985]
[1724411664790,3.75354,2664.2,2663.4,0.68982379]
[1724411664791,3.75354,2664.2,2663.7,6.01556]
[1724411665096,3.75354,2664.2,2663.8,0.65006297]
[1724411666681,3.75328,2664.4,2663.8,0.65006297]
[1724411666888,3.75355,2664.2,2663.8,0.04850697]
[1724411667617,3.75368,2664.1,2663.8,0.04850697]
[1724411670240,3.75312,2664.5,2663.9,2.4464]
[1724411670617,3.75322,2664.4,2663.9,2.4464]
[1724411670950,3.75322,2664.4,2664.0,0.04832672]
[1724411671147,7.50629,2664.5,2664.0,0.04832672]
[1724411671440,3.75323,2664.4,2664.0,0.04832672]
[1724411673830,3.75288,2664.7,2664.1,2.4913]
[1724411673993,3.75288,2664.7,2664.2,0.04814649]
[1724411673994,3.75305,2664.5,2664.2,0.04814649]
[1724411674602,3.75333,2664.3,2664.2,0.04814649]
[1724411675054,3.75305,2664.5,2664.2,0.04814649]
[1724411675055,7.5062,2664.5,2664.2,0.04814649]
[1724411675233,3.7532,2664.4,2664.2,0.04814649]
[1724411675553,3.75305,2664.5,2664.2,0.04814649]
[1724411677368,3.75327,2664.4,2664.2,0.04814649]
[1724411678970,3.75305,2664.5,2664.2,0.04814649]
[1724411680439,7.50623,2664.5,2664.2,0.04814649]
[1724411680735,3.75321,2664.4,2664.2,0.04814649]
[1724411681850,5.3381346,2664.4,2664.2,0.04814649]
[1724411683678,3.75321,2664.4,2664.2,0.04814649]
[1724411684170,5.3378546,2664.6,2664.3,2.4284]
[1724411684171,7.50593,2664.6,2664.3,2.4284]
[1724411684530,3.75307,2664.5,2664.4,0.04740342]
[1724411685106,3.75307,2664.5,2664.3,2.4284]
[1724411685646,3.75293,2664.6,2664.4,0.04740342]
[1724411686289,7.50592,2664.6,2664.4,0.04740342]
[1724411686601,3.75304,2664.5,2664.4,0.04740342]
[1724411686886,5.3379646,2664.5,2664.4,0.04740342]
[1724411687389,9.0910046,2664.5,2664.4,0.04740342]
[1724411687699,3.75326,2664.4,2664.1,2.409]
[1724411687837,3.75326,2664.4,2664.2,0.2409]
[1724411688038,3.75326,2664.4,2664.1,2.409]
[1724411688440,5.3379946,2664.5,2664.1,2.409]
[1724411688660,3.75335,2664.3,2664.1,2.409]
[1724411688986,5.3379946,2664.5,2664.1,2.409]
[1724411688987,9.0911746,2664.5,2664.1,2.409]
[1724411689193,3.75326,2664.4,2664.1,2.409]
[1724411689352,3.75326,2664.4,2664.1,3.766288]
[1724411692290,5.3379946,2664.5,2664.1,3.766288]
[1724411692876,3.75282,2664.7,2664.2,6.16941301]
[1724411693069,5.3377446,2664.7,2664.2,6.09435]
[1724411693371,5.3377446,2664.7,2664.3,3.7533]
[1724411693586,5.3377446,2664.7,2664.4,0.984765]
[1724411694268,3.75256,2664.9,2664.5,2.4299]
[1724411694472,3.75265,2664.8,2664.5,2.4299]
[1724411694669,3.75279,2664.7,2664.5,2.4299]
[1724411694999,5.3378246,2664.6,2664.2,2.4299]
[1724411695172,5.3378246,2664.6,2664.3,0.7540778]
[1724411695770,3.75263,2664.8,2664.3,4.5073178]
[1724411696201,3.75286,2664.7,2664.3,0.7540778]
[1724411696990,3.75286,2664.7,2664.4,0.04718774]
[1724411697817,5.3378446,2664.6,2664.4,0.04718774]
[1724411698474,5.3378446,2664.6,2664.2,2.4299]
[1724411698779,5.3378446,2664.6,2664.5,0.04709765]
[1724411698976,5.3378446,2664.6,2664.2,3.5593538]
[1724411699206,5.3378446,2664.6,2664.5,0.04709765]
[1724411699377,5.3378446,2664.6,2664.2,3.5593538]
[1724411699800,5.3378446,2664.6,2664.3,0.04727783]
[1724411700415,1.5849246,2664.6,2664.3,0.87174396]
[1724411700616,1.5849246,2664.6,2664.4,0.04718774]
[1724411701313,3.75304,2664.5,2664.4,0.04718774]
[1724411701690,3.75304,2664.5,2664.2,2.4299]
[1724411701887,1.5849246,2664.4,2664.2,2.4299]
[1724411702917,1.5849246,2664.4,2664.2,3.048261]
[1724411704019,1.5849246,2664.4,2664.2,2.4299]
[1724411704521,3.7534,2664.3,2663.9,9.74]
[1724411704682,1.5849246,2664.2,2663.9,9.74]
[1724411705510,3.75361,2664.1,2663.9,2.33]
[1724411705824,5.3384246,2664.2,2663.6,18.50001]
[1724411705825,9.0919946,2664.2,2663.6,18.50001]
[1724411706115,9.0919946,2664.2,2663.7,2.591001]
[1724411706116,1.5849246,2664.0,2663.7,2.591001]
[1724411706684,5.3384246,2664.2,2663.7,6.345171]
[1724411706885,7.506,2664.6,2663.9,3.75387]
[1724411707106,1.5849246,2664.4,2664.0,6.23406]
[1724411707346,1.5849246,2664.4,2664.0,7.232853]
[1724411707776,1.5849246,2664.4,2664.1,3.75359]
[1724411708181,5.3378346,2664.6,2664.1,3.75359]
[1724411708626,1.5849246,2664.6,2664.1,3.75353]
[1724411708839,3.75284,2664.7,2664.2,6.24606]
[1724411708985,3.75284,2664.7,2664.2,3.5924383]
[1724411710230,3.75284,2664.7,2664.2,7.3458983]
[1724411710430,3.75263,2664.8,2664.3,3.75332]
[1724411712077,3.75263,2664.8,2664.4,0.04709397]
[1724411712279,5.3377046,2664.7,2664.4,0.04709397]
[1724411712488,5.3377046,2664.7,2664.2,3.5924383]
[1724411712639,5.3377046,2664.7,2664.5,0.04698982]
[1724411712838,5.3377046,2664.7,2664.3,1.10994283]
[1724411713136,5.3377046,2664.7,2664.4,0.04707991]
[1724411714875,3.75278,2664.7,2664.4,0.04707991]
[1724411715284,5.3377046,2664.7,2664.4,0.04707991]
[1724411716653,9.0905446,2664.7,2664.4,0.04707991]
[1724411716856,5.3377046,2664.7,2664.4,0.04707991]
[1724411717362,5.3377046,2664.7,2664.4,0.78738818]
[1724411717695,3.75256,2664.9,2664.4,0.78738818]
[1724411717859,3.75256,2664.9,2664.5,2.4653]
[1724411718058,3.75256,2664.9,2664.6,0.04690442]
[1724411718472,7.50513,2664.9,2664.6,0.04690442]
[1724411718867,7.50515,2664.9,2664.6,0.04690442]
[1724411719394,3.75256,2664.9,2664.6,0.04690442]
[1724411719696,6.75229,2665.1,2664.6,4.50029469]
[1724411719697,3.75229,2665.1,2664.6,4.50029469]
[1724411719857,3.75229,2665.1,2664.7,2.51474445]
[1724411720054,3.75229,2665.1,2664.8,0.04672428]
[1724411720291,3.75229,2665.1,2664.7,2.51474445]
[1724411720449,3.75207,2665.2,2664.8,0.81828953]
[1724411720856,7.89679848,2665.3,2664.8,0.74324509]
[1724411721088,3.75208,2665.2,2664.8,0.74324509]
[1724411722790,7.89679848,2665.3,2664.8,0.74324509]
[1724411723393,3.75201,2665.3,2664.8,4.49584509]
[1724411723583,3.75201,2665.3,2664.9,0.69355451]
[1724411723782,3.75201,2665.3,2665.0,0.07503794]
[1724411724101,3.75206,2665.2,2665.0,0.0462535]
[1724411725467,3.75206,2665.2,2665.1,0.04616345]
[1724411725695,3.75206,2665.2,2664.8,0.69681147]
[1724411726011,3.75206,2665.2,2664.9,0.73527071]
[1724411726170,1.5849246,2665.4,2664.9,0.73527071]
[1724411726171,3.75192,2665.3,2664.9,0.73527071]
[1724411727774,3.75192,2665.3,2665.0,2.4831]
[1724411728194,3.75192,2665.3,2665.1,0.04616345]
[1724411729518,3.75172,2665.5,2665.1,0.36798251]
[1724411729727,5.3366446,2665.5,2665.1,0.36798251]
[1724411730236,3.75172,2665.5,2665.1,0.36798251]
[1724411730432,3.75172,2665.5,2665.1,4.12018251]
[1724411731223,5.3366446,2665.5,2665.1,0.36798251]
[1724411731396,3.75178,2665.4,2665.1,0.04616345]
[1724411731718,3.75202,2665.3,2665.1,0.04616345]
[1724411732824,9.93412,2665.2,2665.1,0.04616345]
[1724411732985,20.98824,2665.2,2665.1,0.04616345]
[1724411733184,20.98824,2665.2,2663.8,7.41]
[1724411733185,3.75336,2664.3,2663.8,7.41]
[1724411733411,2.43,2664.7,2663.7,3.75404]
[1724411733412,5.3385546,2664.1,2663.7,2.4886]
[1724411733657,5.3385546,2664.1,2663.9,0.04392208]
[1724411733658,3.75375,2664.0,2663.9,0.04392208]
[1724411733799,3.75375,2664.0,2663.8,0.04403094]
[1724411734124,3.7536,2664.2,2663.9,0.0439408]
[1724411734292,5.3386346,2664.1,2663.9,0.0439408]
[1724411734696,1.5849246,2664.1,2663.9,0.0439408]
[1724411735127,3.75326,2664.4,2663.9,0.0439408]
[1724411735297,5.3382746,2664.3,2663.9,0.0439408]
[1724411736336,3.75321,2664.4,2663.9,0.0439408]
[1724411736544,3.75321,2664.4,2663.9,1.07330719]
[1724411736916,7.5065,2664.4,2663.9,1.07330719]
[1724411737514,3.75299,2664.6,2663.9,4.82706719]
[1724411737726,3.75299,2664.6,2664.0,4.61181872]
[1724411737727,3.75308,2664.5,2664.0,4.61181872]
[1724411738038,3.75327,2664.4,2664.0,0.85809872]
[1724411738214,3.75327,2664.4,2664.1,0.04425684]
[1724411738414,3.75327,2664.4,2663.8,7.50788]
[1724411738624,7.50656,2664.4,2663.8,3.75392]
[1724411738836,2.43,2664.7,2663.9,0.04443708]
[1724411739079,2.43,2664.7,2663.7,2.4886]
[1724411739080,3.75368,2664.1,2663.6,3.75423]
[1724411739360,3.75341,2664.3,2663.7,3.79869735]
[1724411739714,3.7534,2664.3,2663.7,3.79869735]
[1724411739914,3.7534,2664.3,2663.8,4.50931274]
[1724411740314,3.7534,2664.3,2663.9,0.04443708]
[1724411741056,3.75308,2664.5,2663.9,6.12681708]
[1724411741240,3.75308,2664.5,2664.0,3.75367]
[1724411741454,3.75308,2664.5,2664.0,3.8287406]
[1724411741771,3.75308,2664.5,2664.1,0.04425684]
[1724411742428,7.50622,2664.5,2664.1,0.04425684]
[1724411742830,3.75308,2664.5,2664.1,0.04425684]
[1724411743252,7.50621,2664.5,2664.1,0.04425684]
[1724411743420,7.50625,2664.5,2664.1,0.04425684]
[1724411743837,3.75319,2664.4,2664.1,0.04425684]
[1724411744316,3.75347,2664.2,2664.1,0.04425684]
[1724411744538,3.75347,2664.2,2663.7,9.94458]
[1724411744737,3.75347,2664.2,2664.1,0.04418659]
[1724411744954,3.75363,2664.1,2663.7,2.4364]
[1724411745166,3.75368,2664.1,2663.7,2.4364]
[1724411745515,3.75342,2664.3,2663.6,7.50853]
[1724411745920,3.75342,2664.3,2663.6,7.50845]
[1724411745921,3.75355,2664.2,2663.6,7.50845]
[1724411746125,3.80444678,2664.0,2663.1,2.4364]
[1724411746354,3.75453,2663.5,2663.1,2.4364]
[1724411747029,7.50796,2663.9,2663.2,3.75485]
[1724411747356,7.50797,2663.9,2663.2,7.50953]
[1724411747542,7.50797,2663.9,2663.3,0.994593]
[1724411747543,3.75395,2663.9,2663.3,0.994593]
[1724411747747,3.75395,2663.9,2663.3,4.749293]
[1724411748531,7.50793,2663.9,2663.3,4.749293]
[1724411748752,7.50795,2663.9,2663.3,4.749293]
[1724411748966,3.75407,2663.8,2663.3,4.749293]
[1724411749556,3.75395,2663.9,2663.3,4.749293]
[1724411749557,3.75417,2663.7,2663.3,0.994593]
[1724411749756,3.75417,2663.7,2663.1,6.1914]
[1724411749961,7.50844,2663.7,2663.1,6.1914]
[1724411750461,3.80444678,2664.0,2663.1,2.4364]
[1724411750462,7.55827678,2664.0,2663.1,2.4364]
[1724411750763,3.75484,2663.3,2662.8,2.4364]
[1724411751058,6.23234678,2663.7,2662.5,2.4364]
[1724411751059,3.75531,2662.9,2662.5,2.4364]
[1724411751934,6.0726,2662.8,2661.9,2.3873]
[1724411752136,6.12154678,2662.8,2661.9,2.3873]
[1724411752341,3.75599,2662.5,2661.9,2.3873]
[1724411752537,3.75599,2662.5,2661.9,3.001704]
[1724411752762,3.75599,2662.5,2662.0,0.04523617]
[1724411752763,3.75616,2662.3,2662.0,0.04523617]
[1724411753228,3.75632,2662.2,2662.0,0.04523617]
[1724411753426,7.5124,2662.3,2662.0,0.04523617]
[1724411753676,3.75637,2662.2,2662.0,0.04523617]
[1724411753867,3.75616,2662.3,2662.0,0.04523617]
[1724411754043,7.51241,2662.3,2661.7,3.75698]
[1724411754249,7.51241,2662.3,2662.1,0.04514592]
[1724411754250,3.75629,2662.2,2662.1,0.04514592]
[1724411754425,3.75629,2662.2,2661.6,3.75704]
[1724411754626,7.51271,2662.2,2662.1,0.04514592]
[1724411754861,3.80444678,2662.5,2661.4,6.14463]
[1724411754862,7.56034678,2662.5,2661.4,6.14463]
[1724411755167,3.75676,2661.9,2661.4,2.3873]
[1724411755487,3.75676,2661.9,2661.5,0.66017154]
[1724411755928,3.75649,2662.1,2661.5,0.66017154]
[1724411755929,7.51301,2662.1,2661.5,0.66017154]
[1724411756132,3.75661,2662.0,2661.5,0.66017154]
[1724411756553,3.75661,2662.0,2661.5,0.04568754]
[1724411756554,3.75696,2661.8,2661.5,0.04568754]
[1724411756966,7.56118678,2661.9,2661.3,3.75754]
[1724411757132,7.56118678,2661.9,2661.6,0.04559725]
[1724411757333,7.56118678,2661.9,2661.1,3.75773]
[1724411757626,3.75686,2661.8,2661.2,4.80150807]
[1724411759542,3.75686,2661.8,2661.2,8.55909807]
[1724411759726,3.75686,2661.8,2661.2,4.80140807]
[1724411760380,6.14601,2662.0,2661.3,3.75753]
[1724411760783,3.75661,2662.0,2661.4,0.04790596]
[1724411761094,3.75673,2661.9,2661.4,0.90388806]
[1724411761682,3.75687,2661.8,2661.4,0.90388806]
[1724411762456,3.75661,2662.0,2661.4,4.66116806]
[1724411762788,3.75661,2662.0,2661.5,2.4721]
[1724411763250,3.75661,2662.0,2661.6,0.04772538]
[1724411763446,7.51329,2662.0,2661.6,0.04772538]
[1724411763748,7.51329,2662.0,2661.4,4.6132621]
[1724411763950,3.75661,2662.0,2661.7,0.04761633]
[1724411764151,3.75635,2662.2,2661.4,4.6132621]
[1724411764152,3.75643,2662.1,2661.4,4.6132621]
[1724411764344,3.75643,2662.1,2661.8,0.04752606]
[1724411764626,3.75643,2662.1,2661.5,4.21849621]
[1724411764749,3.75643,2662.1,2661.9,0.04743579]
[1724411764948,3.75657,2662.0,2661.5,4.21849621]
[1724411765988,3.75671,2661.9,2661.5,0.46132621]
[1724411766229,3.75671,2661.9,2661.3,3.75748]
[1724411766685,3.75688,2661.8,2661.2,7.125825]
[1724411767252,7.51387,2661.8,2661.2,7.125825]
[1724411767462,3.75688,2661.8,2661.2,7.125825]
[1724411767785,3.75688,2661.8,2661.2,10.883445]
[1724411767943,3.75688,2661.8,2661.3,1.0883445]
[1724411768414,7.51332,2662.0,2661.3,1.0883445]
[1724411768555,3.75665,2662.0,2661.4,3.75733]
[1724411768754,3.75665,2662.0,2661.4,7.51461]
[1724411768973,3.75665,2662.0,2661.5,0.86029545]
[1724411769546,3.75665,2662.0,2661.4,3.75728]
[1724411769778,3.75665,2662.0,2661.4,7.51461]
[1724411769989,7.51331,2662.0,2661.4,3.75728]
[1724411770808,3.75673,2661.9,2661.4,3.75728]
[1724411771899,3.75673,2661.9,2661.5,0.04788603]
[1724411772308,3.75643,2662.1,2661.5,0.04788603]
[1724411772718,3.75643,2662.1,2661.2,7.125805]
[1724411772912,3.75673,2661.9,2661.4,3.75734]
[1724411773119,3.75673,2661.9,2661.5,0.04788603]
[1724411775744,3.75645,2662.1,2661.6,6.04533]
[1724411775908,3.75645,2662.1,2661.7,0.04770547]
[1724411776109,3.75625,2662.3,2661.7,0.04770547]
[1724411776310,3.75587,2662.5,2662.0,3.75656]
[1724411776552,3.75587,2662.5,2662.1,0.04581629]
[1724411777409,3.75567,2662.7,2662.1,0.04581629]
[1724411777608,11.16544,2662.8,2662.4,2.2999]
[1724411778040,3.75544,2662.8,2662.4,2.2999]
[1724411778447,3.75539,2662.9,2662.5,0.04535214]
[1724411778950,3.75539,2662.9,2662.5,0.65547535]
[1724411779112,3.7549,2663.2,2662.6,3.75562]
[1724411779307,3.7551,2663.1,2662.5,4.41123535]
[1724411779521,3.7551,2663.1,2662.6,3.80096192]
[1724411780940,3.7551,2663.1,2662.6,3.80091192]
[1724411781136,3.7551,2663.1,2662.6,4.84759643]
[1724411782263,3.7551,2663.1,2662.6,8.60323643]
[1724411782556,3.80444678,2663.5,2662.8,3.75536]
[1724411782557,3.75454,2663.5,2662.8,3.75536]
[1724411782860,3.75454,2663.5,2663.0,3.75515]